[Event "Turniej 30-lecia Liceum im. Józefa Bema"]
[Site "Warsaw, Poland"]
[Date "2020.03.07"]
[Round "1.7"]
[White "Praczukowski, Stanislaw"]
[Black "Jankiewicz, Maciej"]
[Result "1-0"]
[TimeControl "0:10:02"]
[WhiteElo "2113"]
[BlackElo "1369"]

1. d4 {[%clk 00:10:02]} {[%emt 00:00:01]} d5 {[%clk 00:10:03]} {[%emt
00:00:02]} 2. c4 {[%clk 00:10:03]} {[%emt 00:00:01]} e5 {[%clk 00:10:05]} 3.
dxe5 {[%clk 00:10:02]} {[%emt 00:00:02]} d4 {[%clk 00:10:05]} {[%emt 00:00:02]}
4. Nf3 Nc6 {[%emt 00:00:01]} 5. a3 {[%clk 00:10:05]} Bg4 {[%clk 00:10:06]}
{[%emt 00:00:02]} 6. Nbd2 {[%clk 00:09:36]} {[%emt 00:00:31]} Nge7 {[%clk
00:09:37]} {[%emt 00:00:30]} 7. Nb3 {[%clk 00:09:15]} {[%emt 00:00:23]} Bxf3
{[%clk 00:09:31]} {[%emt 00:00:09]} 8. exf3 {[%clk 00:09:12]} {[%emt 00:00:04]}
Nxe5 {[%clk 00:09:31]} {[%emt 00:00:03]} 9. Qxd4 {[%clk 00:08:32]} {[%emt
00:00:42]} Qxd4 {[%clk 00:09:28]} {[%emt 00:00:05]} 10. Nxd4 {[%clk 00:08:33]}
{[%emt 00:00:01]} O-O-O {[%clk 00:09:25]} {[%emt 00:00:04]} 11. Be3 {[%clk
00:08:24]} {[%emt 00:00:11]} N7c6 {[%clk 00:08:45]} {[%emt 00:00:43]} 12. Nxc6
{[%clk 00:06:51]} {[%emt 00:01:35]} Nxc6 {[%clk 00:08:45]} {[%emt 00:00:02]} 13.
Be2 {[%clk 00:06:26]} {[%emt 00:00:26]} Nd4 {[%clk 00:08:23]} {[%emt 00:00:24]}
14. Bxd4 {[%clk 00:04:53]} {[%emt 00:01:36]} Rxd4 {[%clk 00:08:23]} {[%emt
00:00:01]} 15. Rd1 {[%clk 00:04:39]} {[%emt 00:00:16]} Rxd1+ {[%clk 00:06:56]}
{[%emt 00:01:29]} 16. Bxd1 {[%clk 00:04:35]} {[%emt 00:00:06]} Bd6 {[%clk
00:06:55]} {[%emt 00:00:03]} 17. O-O {[%clk 00:03:14]} {[%emt 00:01:23]} Re8
{[%clk 00:06:52]} {[%emt 00:00:06]} 18. g3 {[%clk 00:03:10]} {[%emt 00:00:06]}
a5 {[%clk 00:06:53]} 19. Kg2 {[%clk 00:03:04]} {[%emt 00:00:08]} g5 {[%clk
00:06:34]} {[%emt 00:00:21]} 20. Bc2 {[%clk 00:02:43]} {[%emt 00:00:23]} h5
{[%clk 00:06:29]} {[%emt 00:00:06]} 21. Be4 {[%clk 00:02:38]} {[%emt 00:00:07]}
c6 {[%clk 00:06:25]} {[%emt 00:00:07]} 22. Rd1 {[%clk 00:02:36]} {[%emt
00:00:04]} Kc7 {[%clk 00:06:19]} {[%emt 00:00:08]} 23. Rd2 {[%clk 00:02:24]}
{[%emt 00:00:14]} Re5 {[%clk 00:06:07]} {[%emt 00:00:14]} 24. Kf1 {[%clk
00:01:11]} {[%emt 00:01:15]} f5 {[%clk 00:06:04]} {[%emt 00:00:06]} 25. Bd3
{[%clk 00:01:02]} {[%emt 00:00:11]} f4 {[%clk 00:05:38]} {[%emt 00:00:27]} 26.
Be4 {[%clk 00:00:59]} {[%emt 00:00:05]} Re7 {[%clk 00:05:05]} {[%emt 00:00:35]}
27. Kg2 {[%clk 00:00:55]} {[%emt 00:00:06]} g4 {[%clk 00:04:25]} {[%emt
00:00:42]} 28. Bg6 {[%clk 00:00:41]} {[%emt 00:00:17]} fxg3 {[%clk 00:02:00]}
{[%emt 00:02:27]} 29. hxg3 {[%clk 00:00:37]} {[%emt 00:00:06]} Re5 {[%clk
00:01:56]} {[%emt 00:00:07]} 30. f4 {[%clk 00:00:24]} {[%emt 00:00:14]} Rc5
{[%clk 00:01:27]} {[%emt 00:00:31]} 31. Rd4 {[%clk 00:00:16]} {[%emt 00:00:10]}
b5 {[%clk 00:01:14]} {[%emt 00:00:13]} 32. cxb5 {[%clk 00:00:12]} {[%emt
00:00:08]} cxb5 33. b4 {[%emt 00:00:02]} axb4 {[%clk 00:01:11]} {[%emt
00:00:02]} 34. axb4 {[%clk 00:00:08]} {[%emt 00:00:06]} Rc4 {[%clk 00:01:04]}
{[%emt 00:00:10]} 35. Rd5 {[%clk 00:00:07]} {[%emt 00:00:02]} Rxb4 {[%clk
00:00:56]} {[%emt 00:00:09]} 36. Bxh5 {[%clk 00:00:07]} {[%emt 00:00:01]} Kc6
{[%clk 00:00:51]} {[%emt 00:00:07]} 37. Rd2 {[%clk 00:00:05]} {[%emt 00:00:04]}
Rc4 {[%clk 00:00:49]} {[%emt 00:00:04]} 38. Bxg4 {[%clk 00:00:06]} {[%emt
00:00:02]} b4 {[%clk 00:00:48]} {[%emt 00:00:02]} 39. Bf3+ {[%clk 00:00:07]}
Kc5 {[%clk 00:00:49]} 40. Rd5+ {[%clk 00:00:09]} Kb6 {[%clk 00:00:07]} {[%emt
00:00:45]} 41. Rxd6+ {[%clk 00:00:10]} Ka5 {[%clk 00:00:08]} 42. Rd8 {[%clk
00:00:08]} {[%emt 00:00:04]} b3 {[%clk 00:00:07]} {[%emt 00:00:03]} 43. Ra8+
{[%clk 00:00:09]} Kb4 {[%clk 00:00:08]} 44. Bd5 {[%clk 00:00:08]} {[%emt
00:00:03]} Rc3 {[%clk 00:00:07]} {[%emt 00:00:03]} 45. Rb8+ {[%clk 00:00:08]}
{[%emt 00:00:02]} Ka3 {[%clk 00:00:08]} {[%emt 00:00:01]} 46. Rxb3+ {[%clk
00:00:09]} {[%emt 00:00:01]} 1-0

[Event "Turniej 30-lecia Liceum im. Józefa Bema"]
[Site "Warsaw, Poland"]
[Date "2020.03.07"]
[Round "1.8"]
[White "Rylski, Tadeusz"]
[Black "Kedzierski, Slawomir"]
[Result "1-0"]
[TimeControl "0:10:02"]
[WhiteElo "1358"]
[BlackElo "2061"]

1. d4 {[%emt 00:00:05]} Nf6 {[%clk 00:10:01]} {[%emt 00:00:01]} 2. c4 {[%clk
00:10:02]} {[%emt 00:00:02]} e6 {[%clk 00:10:02]} {[%emt 00:00:01]} 3. g3
{[%clk 00:10:00]} {[%emt 00:00:03]} Bb4+ {[%clk 00:10:01]} {[%emt 00:00:02]} 4.
Nd2 {[%clk 00:10:00]} {[%emt 00:00:02]} O-O {[%clk 00:09:58]} {[%emt 00:00:06]}
5. Bg2 {[%clk 00:09:59]} {[%emt 00:00:03]} d6 {[%clk 00:09:58]} {[%emt
00:00:01]} 6. Ngf3 {[%clk 00:09:50]} {[%emt 00:00:11]} c5 {[%clk 00:09:58]}
{[%emt 00:00:02]} 7. O-O {[%clk 00:09:34]} {[%emt 00:00:18]} Nc6 {[%clk
00:09:57]} {[%emt 00:00:03]} 8. Nb3 {[%clk 00:08:56]} {[%emt 00:00:40]} cxd4
{[%clk 00:09:34]} {[%emt 00:00:25]} 9. Nfxd4 {[%clk 00:08:31]} {[%emt
00:00:28]} Nxd4 {[%clk 00:09:11]} {[%emt 00:00:26]} 10. Nxd4 {[%clk 00:08:29]}
{[%emt 00:00:03]} Bc5 {[%clk 00:09:05]} {[%emt 00:00:08]} 11. Bg5 {[%clk
00:08:28]} {[%emt 00:00:04]} h6 {[%clk 00:09:04]} {[%emt 00:00:03]} 12. Be3
{[%clk 00:07:49]} {[%emt 00:00:41]} Bd7 {[%clk 00:08:53]} {[%emt 00:00:13]} 13.
a3 {[%clk 00:07:35]} {[%emt 00:00:16]} Qc7 {[%clk 00:08:40]} {[%emt 00:00:15]}
14. b4 {[%clk 00:06:40]} {[%emt 00:00:58]} Bxd4 {[%clk 00:08:22]} {[%emt
00:00:18]} 15. Bxd4 {[%clk 00:06:04]} {[%emt 00:00:39]} e5 {[%clk 00:08:15]}
{[%emt 00:00:09]} 16. Bb2 {[%clk 00:06:05]} {[%emt 00:00:01]} Be6 {[%clk
00:08:06]} {[%emt 00:00:10]} 17. Rc1 {[%clk 00:04:21]} {[%emt 00:01:46]} Rac8
{[%clk 00:07:59]} {[%emt 00:00:09]} 18. c5 {[%clk 00:04:08]} {[%emt 00:00:15]}
d5 {[%clk 00:07:40]} {[%emt 00:00:21]} 19. f4 {[%clk 00:03:05]} {[%emt
00:01:05]} d4 {[%clk 00:06:44]} {[%emt 00:00:58]} 20. fxe5 {[%clk 00:02:39]}
{[%emt 00:00:28]} Nd5 {[%clk 00:05:33]} {[%emt 00:01:12]} 21. Bxd4 {[%clk
00:01:30]} {[%emt 00:01:12]} Rfd8 {[%clk 00:05:27]} {[%emt 00:00:08]} 22. Qd2
{[%clk 00:01:16]} {[%emt 00:00:15]} Ne7 {[%clk 00:05:19]} {[%emt 00:00:10]} 23.
Qb2 {[%clk 00:01:02]} {[%emt 00:00:16]} Nc6 {[%clk 00:03:56]} {[%emt 00:01:25]}
24. Bc3 {[%clk 00:00:56]} {[%emt 00:00:08]} Ne7 {[%clk 00:03:26]} {[%emt
00:00:32]} 25. Kh1 {[%clk 00:00:53]} {[%emt 00:00:03]} Nd5 {[%clk 00:03:03]}
{[%emt 00:00:27]} 26. Bd4 {[%clk 00:00:53]} {[%emt 00:00:02]} Qd7 {[%clk
00:02:54]} {[%emt 00:00:11]} 27. Rfd1 {[%clk 00:00:41]} {[%emt 00:00:13]} Qc7
{[%clk 00:02:40]} {[%emt 00:00:16]} 28. e4 {[%clk 00:00:27]} {[%emt 00:00:16]}
Ne7 {[%clk 00:02:39]} {[%emt 00:00:03]} 29. Bc3 {[%clk 00:00:24]} {[%emt
00:00:05]} Rxd1+ {[%clk 00:02:32]} {[%emt 00:00:09]} 30. Rxd1 {[%clk 00:00:26]}
Qc6 {[%clk 00:02:19]} {[%emt 00:00:14]} 31. Rd6 {[%clk 00:00:25]} {[%emt
00:00:03]} Qa4 {[%clk 00:02:07]} {[%emt 00:00:14]} 32. Qc1 {[%clk 00:00:10]}
{[%emt 00:00:18]} Nc6 {[%clk 00:01:51]} {[%emt 00:00:17]} 33. Bb2 {[%clk
00:00:07]} {[%emt 00:00:05]} Qb3 {[%clk 00:01:45]} {[%emt 00:00:08]} 34. Qd2
{[%clk 00:00:07]} {[%emt 00:00:02]} Kh7 {[%clk 00:01:11]} {[%emt 00:00:36]} 35.
Rd3 {[%clk 00:00:08]} {[%emt 00:00:01]} Qa2 {[%clk 00:01:12]} {[%emt 00:00:01]}
36. Rd6 {[%clk 00:00:07]} {[%emt 00:00:03]} Ne7 {[%clk 00:01:04]} {[%emt
00:00:09]} 37. Qc3 {[%clk 00:00:06]} {[%emt 00:00:04]} Ng6 {[%clk 00:00:52]}
{[%emt 00:00:13]} 38. Qc1 {[%clk 00:00:03]} {[%emt 00:00:05]} Re8 {[%clk
00:00:47]} {[%emt 00:00:07]} 39. Qc3 {[%clk 00:00:04]} {[%emt 00:00:01]} Ne7
{[%clk 00:00:29]} {[%emt 00:00:20]} 40. Qc1 {[%clk 00:00:05]} Nc6 {[%clk
00:00:28]} {[%emt 00:00:03]} 41. Qc3 {[%clk 00:00:06]} a6 {[%clk 00:00:24]}
{[%emt 00:00:07]} 42. Qc1 {[%clk 00:00:07]} {[%emt 00:00:01]} Na7 {[%clk
00:00:24]} {[%emt 00:00:02]} 43. Qc2 {[%clk 00:00:08]} {[%emt 00:00:02]} Nb5
{[%clk 00:00:23]} {[%emt 00:00:03]} 44. Rd3 {[%clk 00:00:08]} {[%emt 00:00:02]}
Bc4 {[%clk 00:00:11]} {[%emt 00:00:13]} 45. Rd1 {[%clk 00:00:09]} {[%emt
00:00:02]} Bb3 {[%clk 00:00:05]} {[%emt 00:00:07]} 46. Qb1 {[%emt 00:00:02]}
Qxb1 {[%clk 00:00:03]} {[%emt 00:00:03]} 47. Rxb1 {[%clk 00:00:12]} Be6 {[%clk
00:00:04]} {[%emt 00:00:01]} 48. Rd1 {[%clk 00:00:12]} Rc8 {[%clk 00:00:05]}
{[%emt 00:00:01]} 49. Bf1 {[%clk 00:00:12]} {[%emt 00:00:02]} Rc7 {[%clk
00:00:05]} {[%emt 00:00:02]} 50. Bxb5 {[%clk 00:00:13]} {[%emt 00:00:01]} axb5
{[%clk 00:00:06]} 51. Rd6 {[%clk 00:00:14]} Kg6 {[%clk 00:00:06]} {[%emt
00:00:02]} 52. Kg2 {[%clk 00:00:15]} Kg5 {[%clk 00:00:06]} {[%emt 00:00:02]} 53.
Kf3 {[%clk 00:00:15]} {[%emt 00:00:01]} h5 {[%clk 00:00:07]} 54. h4+ Kg6 55.
Kf4 {[%clk 00:00:17]} Rc8 {[%clk 00:00:08]} {[%emt 00:00:03]} 56. Bc3 {[%clk
00:00:19]} Rc7 {[%clk 00:00:08]} {[%emt 00:00:02]} 57. Ke3 {[%clk 00:00:15]}
{[%emt 00:00:06]} Kh7 {[%clk 00:00:09]} {[%emt 00:00:01]} 58. Rb6 {[%clk
00:00:16]} Bc4 {[%clk 00:00:10]} 59. Rd6 {[%clk 00:00:11]} {[%emt 00:00:07]}
Kg8 {[%clk 00:00:10]} {[%emt 00:00:02]} 60. Kf4 {[%clk 00:00:09]} {[%emt
00:00:04]} Kh7 {[%clk 00:00:11]} 61. Ke3 {[%clk 00:00:10]} Re7 {[%clk
00:00:10]} {[%emt 00:00:04]} 62. Rb6 {[%clk 00:00:10]} {[%emt 00:00:03]} Rc7
{[%clk 00:00:10]} {[%emt 00:00:02]} 63. Rd6 {[%clk 00:00:10]} {[%emt 00:00:01]}
Re7 {[%clk 00:00:09]} {[%emt 00:00:03]} 64. c6 {[%clk 00:00:11]} {[%emt
00:00:01]} bxc6 {[%clk 00:00:10]} {[%emt 00:00:02]} 65. Rxc6 {[%clk 00:00:12]}
{[%emt 00:00:01]} Bf1 {[%clk 00:00:08]} {[%emt 00:00:03]} 66. Bd4 {[%clk
00:00:12]} {[%emt 00:00:02]} Re6 {[%emt 00:00:08]} 67. Rc7 {[%clk 00:00:08]}
{[%emt 00:00:02]} Kg6 {[%clk 00:00:06]} {[%emt 00:00:02]} 68. Rb7 {[%clk
00:00:07]} {[%emt 00:00:04]} Ra6 {[%clk 00:00:06]} {[%emt 00:00:02]} 69. Bb2
{[%clk 00:00:07]} {[%emt 00:00:02]} Rc6 {[%clk 00:00:04]} {[%emt 00:00:04]} 70.
Bd4 {[%clk 00:00:07]} {[%emt 00:00:02]} Rc2 {[%clk 00:00:05]} {[%emt 00:00:01]}
71. Rb6+ {[%emt 00:01:32]} 1-0

[Event "Turniej 30-lecia Liceum im. Józefa Bema"]
[Site "Warsaw, Poland"]
[Date "2020.03.07"]
[Round "1.9"]
[White "Szymczak, Rafal"]
[Black "Jankiewicz, Aleksander"]
[Result "1-0"]
[TimeControl "0:10:02"]
[WhiteElo "2021"]
[BlackElo "1322"]

1. f4 {[%clk 00:10:03]} {[%emt 00:00:01]} d5 {[%clk 00:09:47]} {[%emt
00:00:17]} 2. Nf3 {[%clk 00:10:04]} Nf6 {[%clk 00:09:32]} {[%emt 00:00:18]} 3.
g3 {[%clk 00:10:04]} {[%emt 00:00:02]} g6 {[%clk 00:09:30]} {[%emt 00:00:03]} 4.
Bg2 {[%clk 00:10:05]} Bg7 {[%clk 00:09:29]} {[%emt 00:00:03]} 5. O-O {[%clk
00:10:05]} {[%emt 00:00:02]} O-O {[%clk 00:09:30]} {[%emt 00:00:01]} 6. d3
{[%clk 00:10:05]} {[%emt 00:00:02]} c5 {[%clk 00:09:21]} {[%emt 00:00:11]} 7.
Nc3 {[%clk 00:10:04]} {[%emt 00:00:03]} e6 {[%clk 00:08:53]} {[%emt 00:00:29]}
8. e4 {[%clk 00:09:55]} {[%emt 00:00:12]} b6 {[%clk 00:07:01]} {[%emt
00:01:54]} 9. Ne5 {[%clk 00:08:40]} {[%emt 00:01:16]} Bb7 {[%clk 00:05:32]}
{[%emt 00:01:31]} 10. Qe2 {[%clk 00:08:33]} {[%emt 00:00:10]} dxe4 {[%clk
00:04:56]} {[%emt 00:00:38]} 11. dxe4 {[%clk 00:08:19]} {[%emt 00:00:16]} Ba6
{[%clk 00:03:45]} {[%emt 00:01:13]} 12. Nd3 {[%clk 00:08:20]} {[%emt 00:00:01]}
Nc6 {[%clk 00:03:10]} {[%emt 00:00:38]} 13. Be3 {[%clk 00:07:12]} {[%emt
00:01:08]} Nd4 {[%clk 00:02:50]} {[%emt 00:00:22]} 14. Qd1 {[%clk 00:06:26]}
{[%emt 00:00:48]} Rc8 {[%clk 00:01:43]} {[%emt 00:01:10]} 15. Re1 {[%clk
00:06:14]} {[%emt 00:00:14]} Bb7 {[%clk 00:01:36]} {[%emt 00:00:09]} 16. Bf2
{[%clk 00:05:53]} {[%emt 00:00:23]} h5 {[%clk 00:01:35]} {[%emt 00:00:03]} 17.
h3 {[%clk 00:05:52]} {[%emt 00:00:02]} Qe8 {[%clk 00:01:27]} {[%emt 00:00:10]}
18. e5 {[%clk 00:05:36]} {[%emt 00:00:18]} Bxg2 {[%clk 00:00:48]} {[%emt
00:00:41]} 19. Bxd4 {[%clk 00:04:40]} {[%emt 00:00:58]} cxd4 {[%clk 00:00:38]}
{[%emt 00:00:12]} 20. exf6 {[%clk 00:03:38]} {[%emt 00:01:04]} Qc6 {[%clk
00:00:27]} {[%emt 00:00:13]} 21. fxg7 {[%clk 00:03:25]} {[%emt 00:00:15]} Bxh3
{[%clk 00:00:21]} {[%emt 00:00:07]} 22. gxf8=Q+ {[%clk 00:03:15]} {[%emt
00:00:12]} Kxf8 {[%clk 00:00:22]} {[%emt 00:00:01]} 23. Ne4 {[%clk 00:02:51]}
{[%emt 00:00:27]} Bg4 {[%clk 00:00:18]} {[%emt 00:00:06]} 24. Qd2 {[%clk
00:02:42]} {[%emt 00:00:10]} Qxc2 {[%clk 00:00:06]} {[%emt 00:00:13]} 25. Rac1
{[%clk 00:02:22]} {[%emt 00:00:22]} Qxd2 {[%clk 00:00:04]} {[%emt 00:00:05]} 26.
Rxc8+ {[%clk 00:02:22]} {[%emt 00:00:02]} Kg7 {[%clk 00:00:04]} {[%emt
00:00:01]} 27. Nxd2 {[%emt 00:00:11]} 1-0

[Event "Turniej 30-lecia Liceum im. Józefa Bema"]
[Site "Warsaw, Poland"]
[Date "2020.03.07"]
[Round "1.10"]
[White "Grzadka, Artur"]
[Black "Szewczak, Anna"]
[Result "0-1"]
[TimeControl "0:10:02"]
[WhiteElo "1308"]
[BlackElo "2005"]

1. d4 {[%clk 00:10:02]} {[%emt 00:00:02]} Nf6 {[%clk 00:10:01]} {[%emt
00:00:03]} 2. c4 {[%clk 00:10:02]} {[%emt 00:00:02]} c5 {[%clk 00:10:01]}
{[%emt 00:00:02]} 3. d5 {[%clk 00:10:03]} {[%emt 00:00:02]} b5 {[%clk
00:10:01]} {[%emt 00:00:02]} 4. cxb5 {[%clk 00:10:03]} {[%emt 00:00:02]} a6
{[%clk 00:10:03]} 5. e3 {[%clk 00:09:43]} {[%emt 00:00:21]} d6 {[%clk
00:09:46]} {[%emt 00:00:19]} 6. Nc3 {[%clk 00:09:43]} {[%emt 00:00:02]} g6
{[%clk 00:09:44]} {[%emt 00:00:05]} 7. Nf3 {[%clk 00:09:34]} {[%emt 00:00:11]}
Bg7 {[%clk 00:09:44]} 8. Bc4 {[%clk 00:09:31]} {[%emt 00:00:06]} O-O {[%clk
00:09:42]} {[%emt 00:00:05]} 9. O-O {[%clk 00:09:31]} {[%emt 00:00:02]} axb5
{[%clk 00:09:19]} {[%emt 00:00:26]} 10. Nxb5 {[%clk 00:09:12]} {[%emt
00:00:20]} Ba6 {[%clk 00:09:00]} {[%emt 00:00:21]} 11. a4 {[%clk 00:09:07]}
{[%emt 00:00:07]} Nbd7 {[%clk 00:08:35]} {[%emt 00:00:27]} 12. Bd2 {[%clk
00:06:35]} {[%emt 00:02:34]} Ne4 {[%clk 00:07:47]} {[%emt 00:00:50]} 13. Qc2
{[%clk 00:06:03]} {[%emt 00:00:34]} Nxd2 {[%clk 00:07:46]} {[%emt 00:00:03]} 14.
Qxd2 {[%clk 00:05:38]} {[%emt 00:00:27]} Nb6 {[%clk 00:07:32]} {[%emt
00:00:17]} 15. Be2 {[%clk 00:05:11]} {[%emt 00:00:28]} Qd7 {[%clk 00:07:06]}
{[%emt 00:00:28]} 16. Ra3 {[%clk 00:03:51]} {[%emt 00:01:23]} Rfb8 {[%clk
00:06:42]} {[%emt 00:00:26]} 17. b3 {[%clk 00:03:15]} {[%emt 00:00:38]} Qb7
{[%clk 00:04:13]} {[%emt 00:02:30]} 18. Rd1 {[%clk 00:01:58]} {[%emt 00:01:19]}
Nxd5 {[%clk 00:03:49]} {[%emt 00:00:25]} 19. Nxd6 {[%clk 00:01:30]} {[%emt
00:00:30]} exd6 {[%clk 00:03:48]} {[%emt 00:00:03]} 20. Bxa6 {[%clk 00:01:31]}
{[%emt 00:00:02]} Rxa6 {[%clk 00:03:24]} {[%emt 00:00:25]} 21. Qxd5 {[%clk
00:01:04]} {[%emt 00:00:29]} Qb4 {[%clk 00:02:54]} {[%emt 00:00:32]} 22. Qd3
{[%clk 00:00:32]} {[%emt 00:00:34]} Rab6 {[%clk 00:02:38]} {[%emt 00:00:18]} 23.
a5 {[%clk 00:00:20]} {[%emt 00:00:13]} Qxa3 {[%clk 00:02:17]} {[%emt 00:00:23]}
24. axb6 {[%clk 00:00:21]} {[%emt 00:00:02]} Rxb6 {[%clk 00:02:12]} {[%emt
00:00:07]} 25. Nd2 {[%clk 00:00:19]} {[%emt 00:00:03]} Qb4 {[%clk 00:01:46]}
{[%emt 00:00:28]} 26. Nc4 {[%clk 00:00:08]} {[%emt 00:00:13]} Rb8 {[%clk
00:01:18]} {[%emt 00:00:30]} 27. Nxd6 {[%clk 00:00:06]} {[%emt 00:00:04]} Qxb3
{[%clk 00:01:13]} {[%emt 00:00:08]} 28. Qe2 {[%clk 00:00:07]} {[%emt 00:00:01]}
Rd8 {[%clk 00:01:05]} {[%emt 00:00:09]} 29. Kf1 {[%clk 00:00:04]} {[%emt
00:00:06]} Be5 {[%clk 00:01:03]} {[%emt 00:00:03]} 0-1

[Event "Turniej 30-lecia Liceum im. Józefa Bema"]
[Site "Warsaw, Poland"]
[Date "????.??.??"]
[Round "2.1"]
[White "Siekierski, Pawel"]
[Black "Nurkiewicz, Maciej"]
[Result "0-1"]
[TimeControl "0:10:02"]
[WhiteElo "1889"]
[BlackElo "2301"]

1. d4 {[%clk 00:10:03]} d5 {[%clk 00:10:02]} {[%emt 00:00:03]} 2. c4 {[%clk
00:10:04]} e5 {[%clk 00:10:02]} {[%emt 00:00:02]} 3. dxe5 {[%clk 00:10:04]}
{[%emt 00:00:02]} d4 {[%clk 00:10:03]} {[%emt 00:00:01]} 4. g3 {[%clk
00:09:56]} {[%emt 00:00:10]} Nc6 {[%clk 00:10:02]} {[%emt 00:00:03]} 5. f4
{[%clk 00:09:57]} {[%emt 00:00:02]} Bf5 {[%clk 00:09:08]} {[%emt 00:00:55]} 6.
Bg2 {[%clk 00:09:55]} {[%emt 00:00:03]} Qd7 {[%clk 00:09:07]} {[%emt 00:00:04]}
7. Nf3 {[%clk 00:09:54]} {[%emt 00:00:04]} O-O-O {[%clk 00:09:01]} {[%emt
00:00:09]} 8. Nbd2 {[%clk 00:09:28]} {[%emt 00:00:28]} f6 {[%clk 00:08:53]}
{[%emt 00:00:10]} 9. exf6 {[%clk 00:09:22]} {[%emt 00:00:07]} Nxf6 {[%clk
00:08:53]} {[%emt 00:00:02]} 10. O-O {[%clk 00:09:21]} {[%emt 00:00:03]} Ng4
{[%clk 00:08:23]} {[%emt 00:00:32]} 11. Nb3 {[%clk 00:09:00]} {[%emt 00:00:23]}
d3 {[%clk 00:08:16]} {[%emt 00:00:10]} 12. h3 {[%clk 00:08:00]} {[%emt
00:01:01]} dxe2 {[%clk 00:08:09]} {[%emt 00:00:10]} 13. Qxe2 {[%clk 00:08:01]}
{[%emt 00:00:01]} Bd3 {[%clk 00:08:08]} {[%emt 00:00:03]} 14. Qd2 {[%clk
00:07:32]} {[%emt 00:00:31]} Bxf1 {[%clk 00:08:01]} {[%emt 00:00:09]} 15. Qxd7+
{[%clk 00:07:32]} {[%emt 00:00:02]} Rxd7 {[%clk 00:08:00]} {[%emt 00:00:02]} 16.
Bxf1 {[%clk 00:07:17]} {[%emt 00:00:16]} Nf6 {[%clk 00:07:58]} {[%emt
00:00:03]} 17. Be3 {[%clk 00:07:13]} {[%emt 00:00:06]} Bd6 {[%clk 00:07:26]}
{[%emt 00:00:34]} 18. c5 {[%clk 00:06:40]} {[%emt 00:00:35]} Be7 {[%clk
00:07:22]} {[%emt 00:00:05]} 19. Bb5 {[%clk 00:06:41]} {[%emt 00:00:02]} Rhd8
{[%clk 00:07:08]} {[%emt 00:00:16]} 20. Bxc6 {[%clk 00:06:00]} {[%emt
00:00:44]} Rd1+ {[%clk 00:07:01]} {[%emt 00:00:08]} 21. Rxd1 {[%clk 00:06:00]}
{[%emt 00:00:01]} Rxd1+ {[%clk 00:07:01]} {[%emt 00:00:02]} 22. Kg2 {[%clk
00:05:55]} {[%emt 00:00:07]} bxc6 {[%clk 00:07:01]} {[%emt 00:00:02]} 23. Ne5
{[%clk 00:05:54]} {[%emt 00:00:02]} Nd5 {[%clk 00:06:43]} {[%emt 00:00:20]} 24.
Bf2 {[%clk 00:05:30]} {[%emt 00:00:25]} Rb1 {[%clk 00:06:41]} {[%emt 00:00:06]}
25. Bd4 {[%clk 00:05:10]} {[%emt 00:00:22]} Bf6 {[%clk 00:06:37]} {[%emt
00:00:05]} 26. Kf3 {[%clk 00:04:59]} {[%emt 00:00:13]} Bxe5 {[%clk 00:06:28]}
{[%emt 00:00:12]} 27. Bxe5 {[%clk 00:05:00]} {[%emt 00:00:02]} g6 {[%clk
00:06:28]} {[%emt 00:00:03]} 28. Bd4 {[%clk 00:03:57]} {[%emt 00:01:04]} Kd7
{[%clk 00:06:28]} {[%emt 00:00:02]} 29. Kg4 {[%clk 00:03:49]} {[%emt 00:00:10]}
Ke6 {[%clk 00:06:23]} {[%emt 00:00:07]} 30. Be5 {[%clk 00:03:32]} {[%emt
00:00:19]} Kd7 {[%clk 00:06:12]} {[%emt 00:00:12]} 31. Bd4 {[%clk 00:03:34]}
{[%emt 00:00:01]} Nb4 {[%clk 00:06:11]} {[%emt 00:00:03]} 32. a3 {[%clk
00:03:13]} {[%emt 00:00:23]} Nd3 {[%clk 00:06:11]} {[%emt 00:00:01]} 33. Nd2
{[%clk 00:03:13]} {[%emt 00:00:02]} Re1 {[%clk 00:05:50]} {[%emt 00:00:22]} 34.
Nc4 {[%clk 00:03:12]} {[%emt 00:00:03]} Re4 {[%clk 00:05:20]} {[%emt 00:00:32]}
35. Ne5+ {[%clk 00:03:10]} {[%emt 00:00:04]} Nxe5+ {[%clk 00:05:20]} {[%emt
00:00:03]} 36. Bxe5 {[%clk 00:03:09]} {[%emt 00:00:02]} Rc4 {[%clk 00:05:18]}
{[%emt 00:00:04]} 37. h4 {[%clk 00:02:51]} {[%emt 00:00:21]} Rxc5 {[%clk
00:05:01]} {[%emt 00:00:19]} 38. h5 {[%clk 00:02:30]} {[%emt 00:00:22]} gxh5+
{[%clk 00:04:42]} {[%emt 00:00:20]} 39. Kxh5 {[%clk 00:02:31]} {[%emt
00:00:01]} Rc2 {[%clk 00:04:42]} {[%emt 00:00:02]} 40. g4 {[%clk 00:02:18]}
{[%emt 00:00:14]} Ke6 {[%clk 00:04:37]} {[%emt 00:00:08]} 41. Kg5 {[%clk
00:02:14]} {[%emt 00:00:06]} c5 {[%clk 00:04:30]} {[%emt 00:00:09]} 42. Bxc7
{[%clk 00:02:13]} {[%emt 00:00:03]} Rxb2 {[%clk 00:04:30]} {[%emt 00:00:03]} 43.
f5+ {[%clk 00:02:09]} {[%emt 00:00:05]} Kf7 {[%clk 00:04:27]} {[%emt 00:00:05]}
44. Kh6 {[%clk 00:02:11]} {[%emt 00:00:01]} Rb3 {[%clk 00:04:04]} {[%emt
00:00:24]} 45. Bd6 {[%clk 00:02:00]} {[%emt 00:00:13]} Rb6 {[%clk 00:03:31]}
{[%emt 00:00:34]} 46. Kxh7 {[%clk 00:01:53]} {[%emt 00:00:09]} Rxd6 {[%clk
00:03:32]} {[%emt 00:00:01]} 47. g5 {[%clk 00:01:54]} Rd1 {[%clk 00:03:33]}
{[%emt 00:00:01]} 48. g6+ {[%clk 00:01:46]} {[%emt 00:00:10]} Kf6 {[%clk
00:03:34]} {[%emt 00:00:01]} 49. g7 {[%clk 00:01:31]} {[%emt 00:00:16]} Rh1+
{[%clk 00:03:34]} {[%emt 00:00:02]} 50. Kg8 {[%clk 00:01:32]} {[%emt 00:00:01]}
Rg1 {[%clk 00:03:35]} {[%emt 00:00:01]} 0-1